fUST/lending_fUST_20240822
["ID","MTS","AMOUNT","RATE_DAILY","PERIOD"]
[335579968,1724339459217,-500.0,0.00019726,7]
[335579969,1724339459226,-927.23,0.00019726,7]
[335579970,1724339459236,-500.0,0.00019726,7]
[335579971,1724339459245,-1102.72,0.00019726,7]
[335579972,1724339459254,-500.0,0.00019726,7]
[335579973,1724339459263,-500.0,0.00019726,7]
[335579974,1724339459273,-500.0,0.00019726,7]
[335579975,1724339459282,-500.0,0.00019726,7]
[335579976,1724339459291,-886.44,0.00019726,7]
[335579977,1724339459301,-675.41,0.00019726,7]
[335579978,1724339459311,-500.0,0.00019726,7]
[335579979,1724339459320,-500.0,0.00019726,7]
[335579980,1724339459329,-500.0,0.00019726,7]
[335579981,1724339459338,-1608.05,0.00019726,7]
[335579982,1724339459348,-500.0,0.00019726,7]
[335579983,1724339459357,-500.0,0.00019726,7]
[335579984,1724339459367,-591.42,0.00019726,7]
[335579985,1724339459376,-3402.94,0.00019726,7]
[335579986,1724339459386,-500.0,0.00019726,7]
[335579987,1724339459395,-500.0,0.00019726,7]
[335579988,1724339459405,-1589.93,0.00019726,7]
[335579989,1724339459415,-408.95,0.00019726,7]
[335579990,1724339459427,-565.15,0.00019726,7]
[335579991,1724339459439,-2482.34,0.00019726,7]
[335579992,1724339459450,-500.0,0.00019726,7]
[335579993,1724339459460,-500.0,0.00019726,7]
[335579994,1724339459469,-500.0,0.00019726,7]
[335579995,1724339459479,-500.0,0.00019726,7]
[335579996,1724339459488,-1548.5,0.00019726,7]
[335579997,1724339459497,-500.0,0.00019726,7]
[335579998,1724339459507,-500.0,0.00019726,7]
[335579999,1724339459516,-500.0,0.00019726,7]
[335580000,1724339459526,-595.42,0.00019726,7]
[335580001,1724339459535,-836.78,0.00019726,7]
[335580002,1724339459546,-4470.39,0.00019726,7]
[335580003,1724339459557,-902.56,0.00019726,7]
[335580004,1724339459566,-500.0,0.00019726,7]
[335580005,1724339459576,-500.0,0.00019726,7]
[335580006,1724339459586,-978.97,0.00019726,7]
[335580007,1724339459596,-500.0,0.00019726,7]
[335580008,1724339459606,-500.0,0.00019726,7]
[335580009,1724339459617,-2468.18,0.00019726,7]
[335580010,1724339459628,-500.0,0.00019726,7]
[335580011,1724339459637,-500.0,0.00019726,7]
[335580012,1724339459647,-500.0,0.00019726,7]
[335580013,1724339459658,-747.31,0.00019726,7]
[335580014,1724339459668,-500.0,0.00019726,7]
[335580015,1724339459679,-500.0,0.00019726,7]
[335580016,1724339459689,-500.0,0.00019726,7]
[335580017,1724339459698,-500.0,0.00019726,7]
[335580018,1724339459708,-500.0,0.00019726,7]
[335580019,1724339459718,-637.58,0.00019726,7]
[335580020,1724339459729,-500.0,0.00019726,7]
[335580021,1724339459739,-807.69,0.00019726,7]
[335580022,1724339459749,-500.0,0.00019726,7]
[335580023,1724339459761,-524.22,0.00019726,7]
[335580024,1724339459771,-500.0,0.00019726,7]
[335580025,1724339459781,-500.0,0.00019726,7]
[335580026,1724339459791,-500.0,0.00019726,7]
[335580027,1724339459801,-500.0,0.00019726,7]
[335580028,1724339459812,-1635.87,0.00019726,7]
[335580029,1724339459822,-512.11466666,0.00019726,7]
[335580030,1724339459833,-500.0,0.00019726,7]
[335580031,1724339459843,-500.0,0.00019726,7]
[335580032,1724339459854,-500.0,0.00019726,7]
[335580033,1724339459864,-500.0,0.00019726,7]
[335580034,1724339459874,-703.91,0.00019726,7]
[335580035,1724339459884,-2424.95,0.00019726,7]
[335580036,1724339459894,-975.92,0.00019726,7]
[335580037,1724339459904,-725.67,0.00019726,7]
[335580038,1724339459914,-500.0,0.00019726,7]
[335580039,1724339459924,-941.3,0.00019726,7]
[335580040,1724339459934,-500.0,0.00019726,7]
[335580041,1724339459945,-594.62,0.00019726,7]
[335580042,1724339459955,-500.0,0.00019726,7]
[335580043,1724339459965,-2179.41,0.00019726,7]
[335580044,1724339459976,-500.0,0.00019726,7]
[335580045,1724339459989,-500.0,0.00019726,7]
[335580046,1724339459999,-500.0,0.00019726,7]
[335580047,1724339460010,-572.99,0.00019726,7]
[335580048,1724339460021,-500.0,0.00019726,7]
[335580049,1724339460031,-500.0,0.00019726,7]
[335580050,1724339460042,-5331.32,0.00019726,7]
[335580051,1724339460054,-4235.92,0.00019726,7]
[335580052,1724339460065,-566.83,0.00019726,7]
[335580053,1724339460075,-500.0,0.00019726,7]
[335580054,1724339460085,-783.99,0.00019726,7]
[335580055,1724339460096,-500.0,0.00019726,7]
[335580056,1724339460106,-2414.51,0.00019726,7]
[335580057,1724339460119,-500.0,0.00019726,7]
[335580058,1724339460129,-1660.58,0.00019726,7]
[335580059,1724339460140,-584.34,0.00019726,7]
[335580060,1724339460150,-1526.82,0.00019726,7]
[335580061,1724339460160,-2258.84,0.00019726,7]
[335580062,1724339460171,-500.0,0.00019726,7]
[335580063,1724339460181,-500.0,0.00019726,7]
[335580064,1724339460192,-500.0,0.00019726,7]
[335580065,1724339460202,-1119.82,0.00019726,7]
[335580066,1724339460213,-500.0,0.00019726,7]
[335580067,1724339460223,-599.87,0.00019726,7]
[335580068,1724339460234,-500.0,0.00019726,7]
[335580069,1724339460244,-500.0,0.00019726,7]
[335580070,1724339460256,-680.9,0.00019726,7]
[335580071,1724339460266,-595.25,0.00019726,7]
[335580072,1724339460276,-500.0,0.00019726,7]
[335580073,1724339460286,-500.0,0.00019726,7]
[335580074,1724339460296,-788.88,0.00019726,7]
[335580075,1724339460307,-588.02,0.00019726,7]
[335580076,1724339460317,-500.0,0.00019726,7]
[335580077,1724339460327,-500.0,0.00019726,7]
[335580078,1724339460338,-857.06,0.00019726,7]
[335580079,1724339460348,-621.96,0.00019726,7]
[335580080,1724339460358,-712.22,0.00019726,7]
[335580081,1724339460368,-5809.49,0.00019726,7]
[335580082,1724339460379,-832.86,0.00019726,7]
[335580083,1724339460389,-500.0,0.00019726,7]
[335580084,1724339460399,-500.0,0.00019726,7]
[335580085,1724339460409,-500.0,0.00019726,7]
[335580086,1724339460420,-500.0,0.00019726,7]
[335580087,1724339460431,-500.0,0.00019726,7]
[335580088,1724339460441,-1029.54,0.00019726,7]
[335580089,1724339460451,-584.49,0.00019726,7]
[335580090,1724339460462,-577.9,0.00019726,7]
[335580091,1724339460472,-500.0,0.00019726,7]
[335580092,1724339460482,-614.54,0.00019726,7]
[335580093,1724339460492,-967.72,0.00019726,7]
[335580094,1724339460503,-500.0,0.00019726,7]
[335580095,1724339460514,-673.61,0.00019726,7]
[335580096,1724339460524,-500.0,0.00019726,7]
[335580097,1724339460534,-564.78,0.00019726,7]
[335580098,1724339460544,-778.36,0.00019726,7]
[335580099,1724339460554,-1091.36,0.00019726,7]
[335580100,1724339460565,-500.0,0.00019726,7]
[335580101,1724339460575,-500.0,0.00019726,7]
[335580102,1724339460586,-500.0,0.00019726,7]
[335580103,1724339460596,-329.31692437,0.00019726,7]
[335580104,1724339460606,-500.0,0.00019726,7]
[335580105,1724339460616,-500.0,0.00019726,7]
[335580106,1724339460626,-1095.73,0.00019726,7]
[335580107,1724339460636,-500.0,0.00019726,7]
[335580108,1724339460646,-500.0,0.00019726,7]
[335580109,1724339460656,-1210.45,0.00019726,7]
[335580110,1724339460667,-500.0,0.00019726,7]
[335580111,1724339460677,-500.0,0.00019726,7]
[335580112,1724339460687,-2512.15,0.00019726,7]
[335580113,1724339460698,-500.0,0.00019726,7]
[335580114,1724339460707,-627.5,0.00019726,7]
[335580115,1724339460717,-867.29,0.00019726,7]
[335580116,1724339460728,-4673.84,0.00019726,7]
[335580117,1724339460738,-500.0,0.00019726,7]
[335580118,1724339460748,-948.0,0.00019726,7]
[335580119,1724339460764,-500.0,0.00019726,7]
[335580120,1724339460775,-690.72,0.00019726,7]
[335580121,1724339460785,-500.0,0.00019726,7]
[335580122,1724339460795,-500.0,0.00019726,7]
[335580123,1724339460806,-1247.76,0.00019726,7]
[335580124,1724339460816,-500.0,0.00019726,7]
[335580125,1724339460826,-500.0,0.00019726,7]
[335580126,1724339460836,-500.0,0.00019726,7]
[335580127,1724339460846,-500.0,0.00019726,7]
[335580128,1724339460856,-2682.64,0.00019726,7]
[335580129,1724339460867,-500.0,0.00019726,7]
[335580130,1724339460877,-1635.27,0.00019726,7]
[335580131,1724339460887,-697.49,0.00019726,7]
[335580132,1724339460897,-517.68291587,0.00019726,7]
[335580133,1724339460907,-500.0,0.00019726,2]
[335580134,1724339460917,-708.45,0.00019726,7]
[335580135,1724339460927,-2663.2,0.00019726,7]
[335580136,1724339460938,-500.0,0.00019726,7]
[335580137,1724339460949,-205.54858275,0.00019726,7]
[335580138,1724339460959,-500.0,0.00019726,7]
[335580139,1724339460970,-500.0,0.00019726,7]
[335580140,1724339460985,-500.0,0.00019726,7]
[335580141,1724339460995,-500.0,0.00019726,7]
[335580142,1724339461004,-500.0,0.00019726,7]
[335580143,1724339461014,-1130.78,0.00019726,7]
[335580144,1724339461025,-3229.35,0.00019726,7]
[335580145,1724339461036,-500.0,0.00019726,7]
[335580146,1724339461046,-998.77,0.00019726,7]
[335580147,1724339461058,-500.0,0.00019726,7]
[335580148,1724339461068,-500.0,0.00019799,7]
[335580149,1724339461078,-195.50481114,0.0002,2]
[335580150,1724339461088,-501.03086082,0.0002,2]
[335580151,1724339461099,-500.0,0.0002,3]
[335580152,1724339461109,-506.0,0.0002,2]
[335580153,1724339461119,-335.2,0.00020077,2]
[335580154,1724339461130,-500.0,0.00020272,7]
[335580155,1724339461140,-500.0,0.00020272,7]
[335580156,1724339461150,-500.0,0.00020272,7]
[335580157,1724339461161,-500.0,0.00020272,7]
[335580158,1724339461171,-500.0,0.00020272,7]
[335580159,1724339461181,-452.34743402,0.00020272,7]
[335580160,1724339461191,-150.0,0.00020273,2]
[335580161,1724339461202,-150.0,0.00020273,2]
[335580162,1724339461212,-150.0,0.00020273,2]
[335580163,1724339461223,-500.0,0.00020273,7]
[335580164,1724339461233,-500.0,0.00020273,7]
[335580165,1724339461243,-629.36,0.00020273,7]
[335580166,1724339461254,-514.93275159,0.00020273,2]
[335580167,1724339461264,-987.26,0.00020273,7]
[335580168,1724339461275,-500.0,0.00020273,7]
[335580169,1724339461285,-500.0,0.00020273,7]
[335580170,1724339461295,-500.0,0.00020273,7]
[335580171,1724339461306,-592.31,0.00020273,7]
[335580172,1724339461316,-599.77,0.00020273,7]
[335580173,1724339461326,-672.96,0.00020273,7]
[335580174,1724339461336,-504.91,0.00020273,7]
[335580175,1724339461346,-500.0,0.00020273,2]
[335580176,1724339461357,-500.0,0.00020273,7]
[335580177,1724339461367,-500.0,0.00020273,7]
[335580178,1724339461377,-417.40663936,0.00020273,7]
[335580179,1724339461387,-500.0,0.00020273,7]
[335580180,1724339461398,-500.0,0.00020273,7]
[335580181,1724339461408,-500.0,0.00020273,7]
[335580182,1724339461419,-500.0,0.00020273,7]
[335580183,1724339461429,-500.0,0.00020273,7]
[335580184,1724339461439,-342.98308555,0.00020273,7]
[335580185,1724339461449,-628.36,0.00020273,7]
[335580186,1724339461459,-500.0,0.00020273,7]
[335580187,1724339461469,-500.0,0.00020273,7]
[335580188,1724339461479,-500.0,0.00020273,7]
[335580189,1724339461489,-500.0,0.00020273,7]
[335580190,1724339461499,-2197.46,0.00020273,7]
[335580191,1724339461511,-500.0,0.00020273,7]
[335580192,1724339461522,-500.0,0.00020273,7]
[335580193,1724339461532,-500.0,0.00020273,7]
[335580194,1724339461542,-500.0,0.00020273,7]
[335580195,1724339461551,-500.0,0.00020273,7]
[335580196,1724339461561,-500.0,0.00020273,7]
[335580197,1724339461572,-500.0,0.00020273,7]
[335580198,1724339461582,-500.0,0.00020273,7]
[335580199,1724339461592,-500.0,0.00020273,7]
[335580200,1724339461603,-603.66,0.00020273,7]
[335580201,1724339461613,-500.0,0.00020273,7]
[335580202,1724339461623,-500.0,0.00020273,7]
[335580203,1724339461633,-500.0,0.00020273,7]
[335580204,1724339461645,-500.0,0.00020273,7]
[335580205,1724339461657,-500.0,0.00020273,7]
[335580206,1724339461668,-500.0,0.00020273,7]
[335580207,1724339461677,-500.0,0.00020273,7]
[335580208,1724339461687,-500.0,0.00020273,7]
[335580209,1724339461698,-500.0,0.00020273,7]
[335580210,1724339461709,-500.0,0.00020273,7]
[335580211,1724339461719,-524.59376137,0.00020273,7]
[335580212,1724339461729,-500.0,0.00020273,7]
[335580213,1724339461739,-404.74754263,0.00020273,7]
[335580214,1724339461749,-500.0,0.00020273,7]
[335580215,1724339461760,-500.0,0.00020273,7]
[335580216,1724339461770,-500.0,0.00020273,7]
[335580217,1724339461781,-500.0,0.00020273,7]
[335580218,1724339461791,-500.0,0.00020273,7]
[335580219,1724339461802,-500.0,0.00020273,7]
[335580220,1724339461812,-500.0,0.00020273,7]
[335580221,1724339461822,-500.0,0.00020273,7]
[335580222,1724339461832,-500.0,0.00020273,7]
[335580223,1724339461842,-458.72397282,0.00020273,7]
[335580224,1724339461851,-2020.97,0.00020273,7]
[335580225,1724339461861,-500.0,0.00020273,7]
[335580226,1724339461871,-500.0,0.00020273,7]
[335580227,1724339461882,-500.0,0.00020273,7]
[335580228,1724339461892,-559.1970062,0.00020273,7]
[335580229,1724339461902,-500.0,0.00020273,7]
[335580230,1724339461913,-670.05,0.00020273,7]
[335580231,1724339461924,-500.0,0.00020273,7]
[335580232,1724339461934,-500.0,0.00020273,7]
[335580233,1724339461945,-500.0,0.00020273,7]
[335580234,1724339461956,-500.0,0.00020273,7]
[335580235,1724339461966,-522.89,0.00020273,7]
[335580236,1724339461979,-500.0,0.00020273,7]
[335580237,1724339461990,-500.0,0.00020273,7]
[335580238,1724339462003,-500.0,0.00020273,7]
[335580239,1724339462015,-927.27,0.00020273,7]
[335580240,1724339462027,-500.0,0.00020273,7]
[335580241,1724339462229,-500.0,0.00020273,7]
[335580242,1724339462240,-500.0,0.00020273,7]
[335580243,1724339462249,-500.0,0.00020273,7]
[335580244,1724339462260,-500.0,0.00020273,7]
[335580245,1724339462269,-719.46,0.00020273,7]
[335580246,1724339462279,-500.0,0.00020273,7]
[335580247,1724339462288,-500.0,0.00020273,7]
[335580248,1724339462297,-500.0,0.00020273,7]
[335580249,1724339462307,-2364.22,0.00020273,7]
[335580250,1724339462317,-500.0,0.00020273,7]
[335580251,1724339462326,-510.37205906,0.00020273,7]
[335580252,1724339462336,-605.15,0.00020273,2]
[335580253,1724339462345,-500.0,0.00020273,7]
[335580254,1724339462354,-640.98,0.00020273,7]
[335580255,1724339462364,-500.0,0.00020273,7]
[335580256,1724339462373,-638.49,0.00020273,7]
[335580257,1724339462383,-500.0,0.00020273,7]
[335580258,1724339462393,-500.0,0.00020273,7]
[335580259,1724339462402,-500.0,0.00020273,7]
[335580260,1724339462411,-501.45,0.00020273,7]
[335580261,1724339462421,-500.0,0.00020273,7]
[335580262,1724339462430,-500.0,0.00020273,7]
[335580263,1724339462440,-500.0,0.00020273,7]
[335580264,1724339462449,-645.17,0.00020273,7]
[335580265,1724339462458,-200.0,0.00020273,7]
[335580266,1724339462467,-513.97,0.00020273,7]
[335580267,1724339462476,-500.0,0.00020273,7]
[335580268,1724339462487,-1100.96,0.00020273,7]
[335580269,1724339462496,-500.0,0.00020273,7]
[335580270,1724339462506,-500.0,0.00020273,7]
[335580271,1724339462524,-564.35,0.00020273,7]
[335580272,1724339462533,-506.41481993,0.00020273,7]
[335580273,1724339462543,-500.0,0.00020273,7]
[335580274,1724339462552,-500.0,0.00020273,7]
[335580275,1724339462562,-500.0,0.00020273,7]
[335580276,1724339462572,-500.0,0.00020273,7]
[335580277,1724339462581,-500.0,0.00020273,7]
[335580278,1724339462591,-500.0,0.00020273,7]
[335580279,1724339462601,-500.0,0.00020273,7]
[335580280,1724339462611,-500.0,0.00020273,7]
[335580281,1724339462621,-500.0,0.00020273,7]
[335580282,1724339462633,-526.36354735,0.00020273,7]
[335580283,1724339462646,-500.0,0.00020273,7]
[335580284,1724339462656,-500.0,0.00020273,7]
[335580285,1724339462666,-500.0,0.00020273,7]
[335580286,1724339462675,-500.0,0.00020273,7]
[335580287,1724339462686,-500.0,0.00020273,7]
[335580288,1724339462695,-512.60946163,0.00020273,7]
[335580289,1724339462706,-500.0,0.00020273,7]
[335580290,1724339462716,-500.0,0.00020273,7]
[335580291,1724339462726,-500.0,0.00020273,7]
[335580292,1724339462736,-789.21,0.00020273,7]
[335580293,1724339462746,-500.0,0.00020273,7]
[335580294,1724339462757,-500.0,0.00020273,7]
[335580295,1724339462767,-1165.78,0.00020273,7]
[335580296,1724339462776,-500.0,0.00020273,7]
[335580297,1724339462786,-500.0,0.00020273,7]
[335580298,1724339462795,-500.0,0.00020273,7]
[335580299,1724339462807,-500.0,0.00020273,7]
[335580300,1724339462816,-1829.34,0.00020273,7]
[335580301,1724339462827,-593.85,0.00020273,7]
[335580302,1724339462839,-500.0,0.00020273,7]
[335580303,1724339462849,-500.0,0.00020273,7]
[335580304,1724339462859,-770.75,0.00020273,7]
[335580305,1724339462869,-500.0,0.00020273,7]
[335580306,1724339462879,-500.0,0.00020273,7]
[335580307,1724339462888,-500.0,0.00020273,7]
[335580308,1724339462898,-500.0,0.00020273,7]
[335580309,1724339462907,-500.0,0.00020273,7]
[335580310,1724339462917,-677.91,0.00020273,7]
[335580311,1724339462927,-500.0,0.00020273,7]
[335580312,1724339462937,-201.52841463,0.00020273,7]
[335580313,1724339462946,-500.0,0.00020273,7]
[335580314,1724339462955,-508.61,0.00020273,7]
[335580315,1724339462964,-500.0,0.00020273,7]
[335580316,1724339462974,-500.0,0.00020273,7]
[335580317,1724339462988,-808.41,0.00020273,7]
[335580318,1724339462997,-1136.83,0.00020273,7]
[335580319,1724339463008,-500.0,0.00020273,7]
[335580320,1724339463017,-574.63846115,0.00020273,2]
[335580321,1724339463028,-500.0,0.00020273,7]
[335580322,1724339463038,-500.0,0.00020273,7]
[335580323,1724339463048,-1173.73,0.00020273,7]
[335580324,1724339463058,-455.77329382,0.00020273,7]
[335580325,1724339463068,-500.0,0.00020273,7]
[335580326,1724339463077,-957.36,0.00020273,7]
[335580327,1724339463087,-500.0,0.00020273,7]
[335580328,1724339463096,-500.0,0.00020273,7]
[335580329,1724339463106,-558.68,0.00020273,7]
[335580330,1724339463116,-500.0,0.00020273,7]
[335580331,1724339463125,-506.08,0.00020273,7]
[335580332,1724339463135,-500.0,0.00020273,7]
[335580333,1724339463145,-500.0,0.00020273,7]
[335580334,1724339463154,-949.84,0.00020273,7]
[335580335,1724339463164,-689.06,0.00020273,7]
[335580336,1724339463173,-500.0,0.00020273,7]
[335580337,1724339463183,-500.0,0.00020273,7]
[335580338,1724339463193,-500.0,0.00020273,7]
[335580339,1724339463202,-500.0,0.00020273,7]
[335580340,1724339463211,-500.0,0.00020273,7]
[335580341,1724339463221,-500.0,0.00020273,7]
[335580342,1724339463230,-721.62,0.00020273,7]
[335580343,1724339463240,-500.0,0.00020273,7]
[335580344,1724339463249,-381.13873982,0.00020273,7]
[335580345,1724339463260,-505.1,0.00020273,7]
[335580346,1724339463271,-500.0,0.00020273,7]
[335580347,1724339463280,-997.84,0.00020273,7]
[335580348,1724339463291,-500.0,0.00020273,7]
[335580349,1724339463301,-508.78,0.00020273,7]
[335580350,1724339463311,-750.8,0.00020273,7]
[335580351,1724339463320,-500.0,0.00020273,7]
[335580352,1724339463330,-500.0,0.00020273,7]
[335580353,1724339463342,-616.62,0.00020273,7]
[335580354,1724339463352,-500.0,0.00020273,7]
[335580355,1724339463362,-503.01,0.00020273,7]
[335580356,1724339463371,-500.0,0.00020273,7]
[335580357,1724339463381,-538.87,0.00020273,7]
[335580358,1724339463391,-500.0,0.00020273,7]
[335580359,1724339463401,-500.0,0.00020273,7]
[335580360,1724339463410,-700.96,0.00020273,7]
[335580361,1724339463420,-500.0,0.00020273,7]
[335580362,1724339463430,-500.0,0.00020273,7]
[335580363,1724339463439,-500.0,0.00020273,7]
[335580364,1724339463450,-812.56,0.00020273,7]
[335580365,1724339463459,-593.73,0.00020273,7]
[335580366,1724339463469,-500.0,0.00020273,7]
[335580367,1724339463478,-534.86,0.00020273,7]
[335580368,1724339463487,-500.0,0.00020273,7]
[335580369,1724339463497,-500.0,0.00020273,7]
[335580370,1724339463508,-500.0,0.00020273,7]
[335580371,1724339463517,-500.0,0.00020273,7]
[335580372,1724339463530,-518.46910701,0.00020273,7]
[335580373,1724339463541,-500.0,0.00020273,7]
[335580374,1724339463553,-666.03,0.00020273,7]
[335580375,1724339463563,-533.15175851,0.00020273,7]
[335580376,1724339463573,-573.84,0.00020273,7]
[335580377,1724339463582,-500.0,0.00020273,7]
[335580378,1724339463593,-500.0,0.00020273,7]
[335580379,1724339463603,-500.0,0.00020273,7]
[335580380,1724339463613,-513.10340207,0.00020273,7]
[335580381,1724339463622,-500.0,0.00020273,7]
[335580382,1724339463632,-500.0,0.00020273,7]
[335580383,1724339463641,-500.0,0.00020273,7]
[335580384,1724339463651,-636.8,0.00020273,7]
[335580385,1724339463661,-500.0,0.00020273,7]
[335580386,1724339463670,-500.0,0.00020273,7]
[335580387,1724339463680,-500.0,0.00020273,7]
[335580388,1724339463689,-500.0,0.00020273,7]
[335580389,1724339463700,-500.0,0.00020273,7]
[335580390,1724339463709,-540.42,0.00020273,7]
[335580391,1724339463719,-500.0,0.00020273,7]
[335580392,1724339463728,-500.0,0.00020273,7]
[335580393,1724339463737,-500.0,0.00020273,7]
[335580394,1724339463747,-500.0,0.00020273,7]
[335580395,1724339463758,-500.0,0.00020273,7]
[335580396,1724339463768,-500.0,0.00020273,7]
[335580397,1724339463778,-927.23,0.00020273,7]
[335580398,1724339463787,-500.0,0.00020273,7]
[335580399,1724339463797,-1102.72,0.00020273,7]
[335580400,1724339463807,-500.0,0.00020273,7]
[335580401,1724339463816,-513.02657492,0.00020273,7]
[335580402,1724339463826,-500.0,0.00020273,7]
[335580403,1724339463835,-500.0,0.00020273,7]
[335580404,1724339463845,-886.44,0.00020273,7]
[335580405,1724339463855,-675.41,0.00020273,7]
[335580406,1724339463865,-500.0,0.00020273,7]
[335580407,1724339463874,-500.0,0.00020273,7]
[335580408,1724339463884,-500.0,0.00020273,7]
[335580409,1724339463893,-500.0,0.00020273,7]
[335580410,1724339463903,-500.0,0.00020273,7]
[335580411,1724339463912,-1608.05,0.00020273,7]
[335580412,1724339463921,-591.42,0.00020273,7]
[335580413,1724339463931,-3402.94,0.00020273,7]
[335580414,1724339463941,-500.0,0.00020273,7]
[335580415,1724339463951,-252.52408501,0.00020273,7]
[335580416,1724339463961,-1589.93,0.00020273,7]
[335580417,1724339463970,-565.15,0.00020273,7]
[335580418,1724339463984,-2482.34,0.00020273,7]
[335580419,1724339463994,-500.0,0.00020273,7]
[335580420,1724339464003,-500.0,0.00020273,7]
[335580421,1724339464013,-500.0,0.00020273,7]
[335580422,1724339464023,-500.0,0.00020273,7]
[335580423,1724339464033,-1548.5,0.00020273,7]
[335580424,1724339464042,-500.0,0.00020273,7]
[335580425,1724339464053,-500.0,0.00020273,7]
[335580426,1724339464065,-500.0,0.00020273,7]
[335580427,1724339464075,-595.42,0.00020273,7]
[335580428,1724339464084,-836.78,0.00020273,7]
[335580429,1724339464093,-4470.39,0.00020273,7]
[335580430,1724339464103,-500.0,0.00020273,7]
[335580431,1724339464113,-902.56,0.00020273,7]
[335580432,1724339464122,-500.0,0.00020273,7]
[335580433,1724339464132,-978.97,0.00020273,7]
[335580434,1724339464141,-500.0,0.00020273,7]
[335580435,1724339464150,-500.0,0.00020273,7]
[335580436,1724339464160,-2468.18,0.00020273,7]
[335580437,1724339464170,-500.0,0.00020273,7]
[335580438,1724339464180,-500.0,0.00020273,7]
[335580439,1724339464189,-500.0,0.00020273,7]
[335580440,1724339464200,-747.31,0.00020273,7]
[335580441,1724339464210,-500.0,0.00020273,7]
[335580442,1724339464221,-500.0,0.00020273,7]
[335580443,1724339464230,-500.0,0.00020273,7]
[335580444,1724339464240,-500.0,0.00020273,7]
[335580445,1724339464250,-500.0,0.00020273,7]
[335580446,1724339464259,-637.58,0.00020273,7]
[335580447,1724339464269,-500.0,0.00020273,7]
[335580448,1724339464278,-500.0,0.00020273,7]
[335580449,1724339464287,-807.69,0.00020273,7]
[335580450,1724339464297,-500.0,0.00020273,7]
[335580451,1724339464306,-500.0,0.00020273,7]
[335580452,1724339464316,-524.22,0.00020273,7]
[335580453,1724339464325,-500.0,0.00020273,7]
[335580454,1724339464335,-500.0,0.00020273,7]
[335580455,1724339464344,-1635.87,0.00020273,7]
[335580456,1724339464353,-500.0,0.00020273,7]
[335580457,1724339464363,-500.0,0.00020273,7]
[335580458,1724339464372,-500.0,0.00020273,7]
[335580459,1724339464382,-500.0,0.00020273,7]
[335580460,1724339464391,-703.91,0.00020273,7]
[335580461,1724339464400,-2424.95,0.00020273,7]
[335580462,1724339464410,-975.92,0.00020273,7]
[335580463,1724339464419,-725.67,0.00020273,7]
[335580464,1724339464429,-500.0,0.00020273,7]
[335580465,1724339464438,-941.3,0.00020273,7]
[335580466,1724339464448,-500.0,0.00020273,7]
[335580467,1724339464457,-500.0,0.00020273,7]